[Event "Titled Tuesday Blitz May 16 Early 2023"]
[White "Seemann, Jakub"]
[Black "Krsnik Cohar, Ivan Vihor"]
[WhiteFideId "21874697"]
[BlackFideId "14520044"]
[WhiteElo "2364"]
[BlackElo "2414"]
[Result "1-0"]
[Round "06"]
[TimeControl "180+2"]
[Date "2023.05.16"]
[WhiteClock "0:01:44"]
[BlackClock "0:00:00"]

1. b3 {[%clk 0:03:00]}  Nf6 {[%clk 0:03:00]} 2. Bb2 {[%clk 0:03:00]}  e6 {[%clk 0:03:00]} 3. Nf3 {[%clk 0:03:00]}  d5 {[%clk 0:03:01]} 4. g3 {[%clk 0:03:00]}  Be7 {[%clk 0:03:01]} 5. Bg2 {[%clk 0:03:01]}  O-O {[%clk 0:03:02]} 6. O-O {[%clk 0:03:01]}  c5 {[%clk 0:03:02]} 7. d4 {[%clk 0:03:01]}  Nc6 {[%clk 0:03:03]} 8. dxc5 {[%clk 0:03:01]}  Ne4 {[%clk 0:02:58]} 9. Nbd2 {[%clk 0:02:58]}  Bxc5 {[%clk 0:02:56]} 10. c4 {[%clk 0:02:56]}  Nxd2 {[%clk 0:02:51]} 11. Nxd2 {[%clk 0:02:55]}  d4 {[%clk 0:02:42]} 12. Bxc6 {[%clk 0:02:54]}  bxc6 {[%clk 0:02:39]} 13. Ne4 {[%clk 0:02:55]}  Bb6 {[%clk 0:02:14]} 14. c5 {[%clk 0:02:55]}  f5 {[%clk 0:02:13]} 15. Qxd4 {[%clk 0:02:50]}  Qxd4 {[%clk 0:02:09]} 16. Bxd4 {[%clk 0:02:51]}  fxe4 {[%clk 0:02:06]} 17. cxb6 {[%clk 0:02:51]}  axb6 {[%clk 0:02:06]} 18. Bxb6 {[%clk 0:02:52]}  Ba6 {[%clk 0:01:45]} 19. Rfe1 {[%clk 0:02:51]}  Rfb8 {[%clk 0:01:44]} 20. Be3 {[%clk 0:02:51]}  Rb5 {[%clk 0:01:33]} 21. Rec1 {[%clk 0:02:49]}  Bb7 {[%clk 0:01:31]} 22. Kf1 {[%clk 0:02:50]}  Kf7 {[%clk 0:01:28]} 23. Ke1 {[%clk 0:02:50]}  Ra3 {[%clk 0:01:21]} 24. Kd2 {[%clk 0:02:50]}  Ke8 {[%clk 0:01:15]} 25. Kc3 {[%clk 0:02:47]}  Rd5 {[%clk 0:01:09]} 26. Kb2 {[%clk 0:02:46]}  Ra8 {[%clk 0:01:01]} 27. Rc2 {[%clk 0:02:47]}  Kd7 {[%clk 0:00:57]} 28. Kc3 {[%clk 0:02:47]}  g5 {[%clk 0:00:55]} 29. a4 {[%clk 0:02:44]}  g4 {[%clk 0:00:55]} 30. Rh1 {[%clk 0:02:28]}  Rh5 {[%clk 0:00:53]} 31. Rd2+ {[%clk 0:02:26]}  Ke7 {[%clk 0:00:45]} 32. Rd4 {[%clk 0:02:25]}  Raa5 {[%clk 0:00:36]} 33. Rb4 {[%clk 0:02:18]}  Ba8 {[%clk 0:00:27]} 34. Rb8 {[%clk 0:02:17]}  c5 {[%clk 0:00:23]} 35. Rg8 {[%clk 0:02:10]}  c4 {[%clk 0:00:13]} 36. Kxc4 {[%clk 0:02:03]}  Bd5+ {[%clk 0:00:08]} 37. Kb4 {[%clk 0:02:03]}  Ra6 {[%clk 0:00:03]} 38. Rxg4 {[%clk 0:02:01]}  Ra8 {[%clk 0:00:03]} 39. Rb1 {[%clk 0:01:52]}  Rxh2 {[%clk 0:00:03]} 40. Rg7+ {[%clk 0:01:51]}  Kf8 {[%clk 0:00:03]} 41. Ra7 {[%clk 0:01:49]}  Rb8+ {[%clk 0:00:03]} 42. Kc3 {[%clk 0:01:48]}  Rh5 {[%clk 0:00:03]} 43. b4 {[%clk 0:01:48]}  Rf5 {[%clk 0:00:03]} 44. Bc5+ {[%clk 0:01:47]}  Ke8 {[%clk 0:00:03]} 45. Rxh7 {[%clk 0:01:45]}  Rf7 {[%clk 0:00:00]} 46. Rh8+ {[%clk 0:01:44]} 1-0


[Site "https://www.chess.com"]

[Event "Titled Tuesday Blitz May 16 Early 2023"]
[White "Simonian, Hrair"]
[Black "Bethke, Richard"]
[WhiteFideId "13302337"]
[BlackFideId "12959243"]
[WhiteElo "2447"]
[BlackElo "2369"]
[Result "1-0"]
[Round "06"]
[TimeControl "180+2"]
[Date "2023.05.16"]
[WhiteClock "0:00:17"]
[BlackClock "0:00:00"]

1. e4 {[%clk 0:03:00]}  c5 {[%clk 0:02:59]} 2. Nc3 {[%clk 0:03:00]}  Nc6 {[%clk 0:02:59]} 3. Bb5 {[%clk 0:03:00]}  Nd4 {[%clk 0:02:59]} 4. Bc4 {[%clk 0:03:00]}  e6 {[%clk 0:02:59]} 5. Nge2 {[%clk 0:03:01]}  a6 {[%clk 0:02:54]} 6. Nxd4 {[%clk 0:02:59]}  cxd4 {[%clk 0:02:54]} 7. Ne2 {[%clk 0:03:00]}  b5 {[%clk 0:02:54]} 8. Bb3 {[%clk 0:02:59]}  Qb6 {[%clk 0:02:53]} 9. d3 {[%clk 0:02:59]}  Bb4+ {[%clk 0:02:50]} 10. Bd2 {[%clk 0:02:58]}  Be7 {[%clk 0:02:50]} 11. O-O {[%clk 0:02:58]}  Nf6 {[%clk 0:02:50]} 12. Ng3 {[%clk 0:02:57]}  O-O {[%clk 0:02:50]} 13. f4 {[%clk 0:02:57]}  Bb7 {[%clk 0:02:50]} 14. f5 {[%clk 0:02:57]}  d5 {[%clk 0:02:48]} 15. e5 {[%clk 0:02:55]}  Nd7 {[%clk 0:02:49]} 16. f6 {[%clk 0:02:49]}  gxf6 {[%clk 0:02:48]} 17. Nh5 {[%clk 0:02:50]}  Nxe5 {[%clk 0:02:44]} 18. Bh6 {[%clk 0:02:32]}  Rfc8 {[%clk 0:02:35]} 19. Bg7 {[%clk 0:02:32]}  Ng6 {[%clk 0:02:08]} 20. Bxf6 {[%clk 0:02:31]}  Bxf6 {[%clk 0:02:08]} 21. Nxf6+ {[%clk 0:02:32]}  Kg7 {[%clk 0:02:09]} 22. Qh5 {[%clk 0:02:28]}  Rh8 {[%clk 0:02:09]} 23. Qg5 {[%clk 0:02:11]}  Qc7 {[%clk 0:01:47]} 24. Nh5+ {[%clk 0:02:06]}  Kf8 {[%clk 0:01:46]} 25. Rxf7+ {[%clk 0:01:43]}  Kxf7 {[%clk 0:01:31]} 26. Rf1+ {[%clk 0:01:42]}  Kg8 {[%clk 0:01:26]} 27. Qh6 {[%clk 0:00:57]}  Rf8 {[%clk 0:01:24]} 28. Qxf8+ {[%clk 0:00:51]}  Nxf8 {[%clk 0:01:22]} 29. Nf6+ {[%clk 0:00:52]}  Kg7 {[%clk 0:01:22]} 30. Ne8+ {[%clk 0:00:52]}  Kg6 {[%clk 0:01:02]} 31. Nxc7 {[%clk 0:00:53]}  h5 {[%clk 0:00:36]} 32. a4 {[%clk 0:00:43]}  bxa4 {[%clk 0:00:33]} 33. Bxa4 {[%clk 0:00:43]}  Rh7 {[%clk 0:00:29]} 34. Be8+ {[%clk 0:00:36]}  Kg5 {[%clk 0:00:25]} 35. Bf7 {[%clk 0:00:28]}  e5 {[%clk 0:00:21]} 36. Nxd5 {[%clk 0:00:26]}  Ng6 {[%clk 0:00:17]} 37. Be6 {[%clk 0:00:18]}  Bxd5 {[%clk 0:00:15]} 38. Bxd5 {[%clk 0:00:19]}  Nf4 {[%clk 0:00:16]} 39. Be4 {[%clk 0:00:19]}  Rc7 {[%clk 0:00:16]} 40. Rf2 {[%clk 0:00:18]}  Rc5 {[%clk 0:00:15]} 41. Kf1 {[%clk 0:00:17]}  Ra5 {[%clk 0:00:15]} 42. Ke1 {[%clk 0:00:16]}  Ra1+ {[%clk 0:00:10]} 43. Kd2 {[%clk 0:00:17]}  Kg4 {[%clk 0:00:03]} 44. g3 {[%clk 0:00:16]}  Nh3 {[%clk 0:00:03]} 45. Bf5+ {[%clk 0:00:17]}  Kg5 {[%clk 0:00:02]} 46. Bxh3 {[%clk 0:00:18]}  a5 {[%clk 0:00:00]} 47. Rf5+ {[%clk 0:00:17]} 1-0


[Site "https://www.chess.com"]

[Event "Titled Tuesday Blitz May 16 Early 2023"]
[White "Gonzalez, Francisco Silva"]
[Black "Mendez Fortes, Eduardo Jesus"]
[WhiteFideId "1512285"]
[BlackFideId "3502376"]
[WhiteElo "2074"]
[BlackElo "2307"]
[Result "0-1"]
[Round "06"]
[TimeControl "180+2"]
[Date "2023.05.16"]
[WhiteClock "0:00:00"]
[BlackClock "0:00:38"]

1. d4 {[%clk 0:02:53]}  Nf6 {[%clk 0:02:59]} 2. c4 {[%clk 0:02:51]}  e6 {[%clk 0:03:00]} 3. Nc3 {[%clk 0:02:52]}  Bb4 {[%clk 0:02:59]} 4. a3 {[%clk 0:02:52]}  Bxc3+ {[%clk 0:02:59]} 5. bxc3 {[%clk 0:02:51]}  O-O {[%clk 0:02:54]} 6. e3 {[%clk 0:02:52]}  c5 {[%clk 0:02:54]} 7. Bd3 {[%clk 0:02:51]}  d6 {[%clk 0:02:54]} 8. e4 {[%clk 0:02:50]}  b6 {[%clk 0:02:54]} 9. Nf3 {[%clk 0:02:49]}  Nc6 {[%clk 0:02:54]} 10. O-O {[%clk 0:02:49]}  Ba6 {[%clk 0:02:54]} 11. Be3 {[%clk 0:02:43]}  Na5 {[%clk 0:02:53]} 12. e5 {[%clk 0:02:42]}  dxe5 {[%clk 0:02:49]} 13. dxe5 {[%clk 0:02:41]}  Nd7 {[%clk 0:02:46]} 14. Bxh7+ {[%clk 0:02:41]}  Kxh7 {[%clk 0:02:45]} 15. Ng5+ {[%clk 0:02:41]}  Kg6 {[%clk 0:02:44]} 16. Qd3+ {[%clk 0:02:32]}  f5 {[%clk 0:02:44]} 17. exf6+ {[%clk 0:02:32]}  Kxf6 {[%clk 0:02:45]} 18. Qe4 {[%clk 0:02:22]}  Qe7 {[%clk 0:02:21]} 19. Qf4+ {[%clk 0:01:45]}  Kg6 {[%clk 0:02:19]} 20. Qe4+ {[%clk 0:01:45]}  Rf5 {[%clk 0:02:19]} 21. Qxa8 {[%clk 0:01:45]}  Rxg5 {[%clk 0:02:13]} 22. Qe4+ {[%clk 0:01:42]}  Rf5 {[%clk 0:02:12]} 23. g4 {[%clk 0:01:39]}  Qf6 {[%clk 0:02:03]} 24. gxf5+ {[%clk 0:01:39]}  Qxf5 {[%clk 0:02:04]} 25. Qxf5+ {[%clk 0:01:31]}  Kxf5 {[%clk 0:02:03]} 26. Rfd1 {[%clk 0:01:29]}  Ne5 {[%clk 0:02:03]} 27. h4 {[%clk 0:01:19]}  Naxc4 {[%clk 0:02:02]} 28. Rd8 {[%clk 0:01:19]}  Nf3+ {[%clk 0:02:00]} 29. Kg2 {[%clk 0:01:16]}  Nxh4+ {[%clk 0:01:54]} 30. Kg3 {[%clk 0:01:16]}  Ng6 {[%clk 0:01:54]} 31. Kh3 {[%clk 0:01:04]}  Nce5 {[%clk 0:01:48]} 32. Rg1 {[%clk 0:01:01]}  Be2 {[%clk 0:01:38]} 33. Rg5+ {[%clk 0:01:00]}  Kf6 {[%clk 0:01:38]} 34. f4 {[%clk 0:00:56]}  Nf7 {[%clk 0:01:31]} 35. Rd2 {[%clk 0:00:51]}  Bf1+ {[%clk 0:01:27]} 36. Kg4 {[%clk 0:00:49]}  Nxg5 {[%clk 0:01:21]} 37. fxg5+ {[%clk 0:00:49]}  Ke7 {[%clk 0:01:21]} 38. Bf4 {[%clk 0:00:44]}  e5 {[%clk 0:01:16]} 39. Bg3 {[%clk 0:00:41]}  Ke6 {[%clk 0:01:16]} 40. Rd8 {[%clk 0:00:40]}  Be2+ {[%clk 0:01:16]} 41. Kh3 {[%clk 0:00:40]}  Bf3 {[%clk 0:00:57]} 42. Bh2 {[%clk 0:00:34]}  Ne7 {[%clk 0:00:42]} 43. Kg3 {[%clk 0:00:33]}  e4 {[%clk 0:00:42]} 44. Kf4 {[%clk 0:00:32]}  Nd5+ {[%clk 0:00:41]} 45. Kg3 {[%clk 0:00:29]}  Nxc3 {[%clk 0:00:39]} 46. Rh8 {[%clk 0:00:29]}  Kf5 {[%clk 0:00:39]} 47. Rg8 {[%clk 0:00:28]}  Kg6 {[%clk 0:00:34]} 48. Kf4 {[%clk 0:00:22]}  Nb5 {[%clk 0:00:34]} 49. a4 {[%clk 0:00:16]}  Nc3 {[%clk 0:00:34]} 50. a5 {[%clk 0:00:16]}  bxa5 {[%clk 0:00:34]} 51. Rc8 {[%clk 0:00:15]}  Nd5+ {[%clk 0:00:35]} 52. Ke5 {[%clk 0:00:14]}  Nb4 {[%clk 0:00:35]} 53. Rxc5 {[%clk 0:00:14]}  Nd3+ {[%clk 0:00:35]} 54. Kd4 {[%clk 0:00:14]}  Nxc5 {[%clk 0:00:35]} 55. Kxc5 {[%clk 0:00:15]}  Kxg5 {[%clk 0:00:36]} 56. Kb5 {[%clk 0:00:15]}  Kg4 {[%clk 0:00:36]} 57. Kxa5 {[%clk 0:00:16]}  Kh3 {[%clk 0:00:36]} 58. Bg1 {[%clk 0:00:16]}  g5 {[%clk 0:00:36]} 59. Bxa7 {[%clk 0:00:14]}  Kg2 {[%clk 0:00:37]} 60. Kb4 {[%clk 0:00:15]}  Kf1 {[%clk 0:00:37]} 61. Kc3 {[%clk 0:00:15]}  g4 {[%clk 0:00:37]} 62. Kd2 {[%clk 0:00:15]}  g3 {[%clk 0:00:37]} 63. Ke3 {[%clk 0:00:15]}  g2 {[%clk 0:00:37]} 64. Kf4 {[%clk 0:00:14]}  g1=Q {[%clk 0:00:37]} 65. Bxg1 {[%clk 0:00:14]}  Kxg1 {[%clk 0:00:38]} 66. Ke3 {[%clk 0:00:14]}  Kf1 {[%clk 0:00:38]} 67. Kd2 {[%clk 0:00:14]}  Kf2 {[%clk 0:00:38]} 68. Kc3 {[%clk 0:00:12]}  e3 {[%clk 0:00:38]} 69. Kd3 {[%clk 0:00:00]}  e2 {[%clk 0:00:38]} 0-1


[Site "https://www.chess.com"]

[Event "Titled Tuesday Blitz May 16 Early 2023"]
[White "Colas, Joshua"]
[Black "Martic, Ivan"]
[WhiteFideId "2044447"]
[BlackFideId "929301"]
[WhiteElo "2347"]
[BlackElo "2360"]
[Result "1-0"]
[Round "06"]
[TimeControl "180+2"]
[Date "2023.05.16"]
[WhiteClock "0:01:59"]
[BlackClock "0:00:59"]

1. Nf3 {[%clk 0:03:00]}  g6 {[%clk 0:02:58]} 2. g3 {[%clk 0:03:00]}  Bg7 {[%clk 0:02:58]} 3. Bg2 {[%clk 0:02:56]}  f5 {[%clk 0:02:58]} 4. O-O {[%clk 0:02:56]}  Nf6 {[%clk 0:02:58]} 5. d3 {[%clk 0:02:57]}  O-O {[%clk 0:02:58]} 6. e4 {[%clk 0:02:57]}  d6 {[%clk 0:02:58]} 7. exf5 {[%clk 0:02:56]}  gxf5 {[%clk 0:02:57]} 8. d4 {[%clk 0:02:56]}  e6 {[%clk 0:02:47]} 9. c4 {[%clk 0:02:55]}  Kh8 {[%clk 0:02:46]} 10. Nc3 {[%clk 0:02:55]}  Qe8 {[%clk 0:02:33]} 11. Re1 {[%clk 0:02:49]}  Qh5 {[%clk 0:02:26]} 12. Ng5 {[%clk 0:02:46]}  Qxd1 {[%clk 0:02:22]} 13. Nxd1 {[%clk 0:02:46]}  Re8 {[%clk 0:02:09]} 14. Nc3 {[%clk 0:02:39]}  h6 {[%clk 0:02:06]} 15. Nh3 {[%clk 0:02:37]}  Kg8 {[%clk 0:02:01]} 16. Bd2 {[%clk 0:02:32]}  Nc6 {[%clk 0:01:56]} 17. Nb5 {[%clk 0:02:28]}  Re7 {[%clk 0:01:54]} 18. d5 {[%clk 0:02:28]}  exd5 {[%clk 0:01:49]} 19. Rxe7 {[%clk 0:02:25]}  Nxe7 {[%clk 0:01:50]} 20. Nxc7 {[%clk 0:02:25]}  Rb8 {[%clk 0:01:51]} 21. cxd5 {[%clk 0:02:17]}  Bd7 {[%clk 0:01:41]} 22. Re1 {[%clk 0:02:13]}  Kf7 {[%clk 0:01:40]} 23. Nf4 {[%clk 0:02:13]}  Rc8 {[%clk 0:01:31]} 24. Nce6 {[%clk 0:02:10]}  Bh8 {[%clk 0:01:31]} 25. Bc3 {[%clk 0:02:09]}  Ng6 {[%clk 0:01:21]} 26. Nxg6 {[%clk 0:02:07]}  Kxg6 {[%clk 0:01:22]} 27. Nf4+ {[%clk 0:02:01]}  Kf7 {[%clk 0:01:20]} 28. Bf3 {[%clk 0:02:02]}  b5 {[%clk 0:01:15]} 29. a3 {[%clk 0:02:00]}  Bg7 {[%clk 0:01:14]} 30. Kg2 {[%clk 0:01:59]}  Rc4 {[%clk 0:01:07]} 31. Nh5 {[%clk 0:01:59]}  Nxh5 {[%clk 0:00:59]} 32. Bxh5+ {[%clk 0:02:00]}  Kf8 {[%clk 0:00:59]} 33. Bxg7+ {[%clk 0:01:59]}  Kxg7 {[%clk 0:01:00]} 34. Re7+ {[%clk 0:01:59]}  Kf6 {[%clk 0:00:59]} 35. Rxd7 {[%clk 0:01:59]} 1-0


[Site "https://www.chess.com"]

[Event "Titled Tuesday Blitz May 16 Early 2023"]
[White "Florescu, Codrut-Constantin"]
[Black "Jimenez Almeida, Luis David"]
[WhiteFideId "1202200"]
[BlackFideId "22242244"]
[WhiteElo "2191"]
[BlackElo "2245"]
[Result "1-0"]
[Round "06"]
[TimeControl "180+2"]
[Date "2023.05.16"]
[WhiteClock "0:00:50"]
[BlackClock "0:00:07"]

1. c4 {[%clk 0:03:00]}  g6 {[%clk 0:02:58]} 2. Nc3 {[%clk 0:03:00]}  Bg7 {[%clk 0:02:58]} 3. e4 {[%clk 0:03:00]}  c5 {[%clk 0:02:58]} 4. g3 {[%clk 0:02:59]}  Nc6 {[%clk 0:02:58]} 5. Bg2 {[%clk 0:02:59]}  d6 {[%clk 0:02:58]} 6. d3 {[%clk 0:02:59]}  Nd4 {[%clk 0:02:58]} 7. Nge2 {[%clk 0:02:59]}  e6 {[%clk 0:02:58]} 8. O-O {[%clk 0:02:58]}  Ne7 {[%clk 0:02:58]} 9. f4 {[%clk 0:02:58]}  O-O {[%clk 0:02:58]} 10. Nxd4 {[%clk 0:02:57]}  cxd4 {[%clk 0:02:56]} 11. Ne2 {[%clk 0:02:56]}  Bd7 {[%clk 0:02:50]} 12. g4 {[%clk 0:02:56]}  Bc6 {[%clk 0:02:46]} 13. g5 {[%clk 0:02:56]}  f5 {[%clk 0:02:43]} 14. gxf6 {[%clk 0:02:55]}  Bxf6 {[%clk 0:02:43]} 15. Ng3 {[%clk 0:02:52]}  Bg7 {[%clk 0:02:39]} 16. Qg4 {[%clk 0:02:45]}  Qd7 {[%clk 0:02:38]} 17. h4 {[%clk 0:02:45]}  b5 {[%clk 0:02:16]} 18. b3 {[%clk 0:02:40]}  e5 {[%clk 0:02:03]} 19. f5 {[%clk 0:02:31]}  Kh8 {[%clk 0:01:50]} 20. Bg5 {[%clk 0:01:49]}  gxf5 {[%clk 0:01:32]} 21. exf5 {[%clk 0:01:49]}  Bxg2 {[%clk 0:01:25]} 22. Kxg2 {[%clk 0:01:50]}  d5 {[%clk 0:01:04]} 23. Bxe7 {[%clk 0:01:42]}  Qxe7 {[%clk 0:01:01]} 24. cxd5 {[%clk 0:01:42]}  Bf6 {[%clk 0:00:56]} 25. Kh3 {[%clk 0:01:34]}  Rg8 {[%clk 0:00:54]} 26. Qe4 {[%clk 0:01:34]}  Rac8 {[%clk 0:00:36]} 27. Nh5 {[%clk 0:01:26]}  Rc3 {[%clk 0:00:34]} 28. Rg1 {[%clk 0:01:24]}  Rgc8 {[%clk 0:00:29]} 29. Rg3 {[%clk 0:01:19]}  Rc2 {[%clk 0:00:19]} 30. Rag1 {[%clk 0:01:18]}  Bxh4 {[%clk 0:00:19]} 31. Rg7 {[%clk 0:01:02]}  Qe8 {[%clk 0:00:18]} 32. Qg4 {[%clk 0:00:52]}  Bf2 {[%clk 0:00:08]} 33. Rxh7+ {[%clk 0:00:50]}  Kxh7 {[%clk 0:00:07]} 34. Qg7# {[%clk 0:00:50]} 1-0


[Site "https://www.chess.com"]

[Event "Titled Tuesday Blitz May 16 Early 2023"]
[White "Jakic, Ivan"]
[Black "Lewicki, Miroslaw"]
[WhiteFideId "14504901"]
[BlackFideId "1113380"]
[WhiteElo "2370"]
[BlackElo "2212"]
[Result "0-1"]
[Round "06"]
[TimeControl "180+2"]
[Date "2023.05.16"]
[WhiteClock "0:01:43"]
[BlackClock "0:01:29"]

1. e4 {[%clk 0:03:00]}  c5 {[%clk 0:02:59]} 2. Nf3 {[%clk 0:03:00]}  d6 {[%clk 0:02:59]} 3. d4 {[%clk 0:03:00]}  cxd4 {[%clk 0:02:59]} 4. Qxd4 {[%clk 0:03:01]}  Bd7 {[%clk 0:02:59]} 5. c4 {[%clk 0:02:59]}  Nc6 {[%clk 0:02:59]} 6. Qe3 {[%clk 0:02:59]}  Nf6 {[%clk 0:02:59]} 7. Nc3 {[%clk 0:02:59]}  g6 {[%clk 0:02:59]} 8. h3 {[%clk 0:03:00]}  Bg7 {[%clk 0:03:00]} 9. Be2 {[%clk 0:03:00]}  O-O {[%clk 0:03:00]} 10. O-O {[%clk 0:03:01]}  Rc8 {[%clk 0:03:00]} 11. Rd1 {[%clk 0:03:01]}  Na5 {[%clk 0:02:57]} 12. b3 {[%clk 0:03:01]}  Nxe4 {[%clk 0:02:55]} 13. Qxe4 {[%clk 0:03:01]}  Bxc3 {[%clk 0:02:55]} 14. Rb1 {[%clk 0:02:58]}  Bf5 {[%clk 0:02:54]} 15. Qh4 {[%clk 0:02:54]}  Bxb1 {[%clk 0:02:50]} 16. Ng5 {[%clk 0:02:53]}  h5 {[%clk 0:02:43]} 17. Bd3 {[%clk 0:02:50]}  Bxd3 {[%clk 0:02:39]} 18. Rxd3 {[%clk 0:02:51]}  Bf6 {[%clk 0:02:39]} 19. g4 {[%clk 0:02:51]}  Nxc4 {[%clk 0:02:19]} 20. gxh5 {[%clk 0:02:39]}  Kg7 {[%clk 0:01:53]} 21. h6+ {[%clk 0:02:22]}  Kh8 {[%clk 0:01:53]} 22. bxc4 {[%clk 0:02:22]}  Qa5 {[%clk 0:01:53]} 23. Bd2 {[%clk 0:02:17]}  Qxa2 {[%clk 0:01:49]} 24. Qe4 {[%clk 0:01:53]}  Rxc4 {[%clk 0:01:30]} 25. Qg2 {[%clk 0:01:43]}  Qb1+ {[%clk 0:01:29]} 0-1


[Site "https://www.chess.com"]

[Event "Titled Tuesday Blitz May 16 Early 2023"]
[White "Cezila Jr, Rubens"]
[Black "Lenaerts, Lennert"]
[WhiteFideId "2116723"]
[BlackFideId "211435"]
[WhiteElo "2214"]
[BlackElo "2334"]
[Result "1-0"]
[Round "06"]
[TimeControl "180+2"]
[Date "2023.05.16"]
[WhiteClock "0:00:08"]
[BlackClock "0:00:18"]

1. c4 {[%clk 0:02:57]}  e5 {[%clk 0:02:58]} 2. Nc3 {[%clk 0:02:58]}  Bb4 {[%clk 0:02:58]} 3. Nd5 {[%clk 0:02:57]}  Bc5 {[%clk 0:02:58]} 4. Nf3 {[%clk 0:02:50]}  e4 {[%clk 0:02:56]} 5. d4 {[%clk 0:02:50]}  Bf8 {[%clk 0:02:34]} 6. Ng1 {[%clk 0:02:19]}  c6 {[%clk 0:02:32]} 7. Nc3 {[%clk 0:02:19]}  d5 {[%clk 0:02:27]} 8. cxd5 {[%clk 0:02:18]}  cxd5 {[%clk 0:02:28]} 9. Qb3 {[%clk 0:02:19]}  Nf6 {[%clk 0:02:28]} 10. Bg5 {[%clk 0:02:19]}  Nc6 {[%clk 0:02:25]} 11. e3 {[%clk 0:02:17]}  Bb4 {[%clk 0:02:23]} 12. Bb5 {[%clk 0:02:16]}  O-O {[%clk 0:02:20]} 13. Bxc6 {[%clk 0:02:14]}  Bxc3+ {[%clk 0:02:20]} 14. Qxc3 {[%clk 0:02:13]}  bxc6 {[%clk 0:02:21]} 15. Qxc6 {[%clk 0:02:13]}  Be6 {[%clk 0:02:21]} 16. Ne2 {[%clk 0:02:07]}  Rc8 {[%clk 0:02:20]} 17. Qa4 {[%clk 0:02:07]}  Qb6 {[%clk 0:02:18]} 18. Qb3 {[%clk 0:02:05]}  Qa5+ {[%clk 0:02:15]} 19. Nc3 {[%clk 0:02:04]}  Rb8 {[%clk 0:02:15]} 20. Qc2 {[%clk 0:02:04]}  Qa6 {[%clk 0:02:13]} 21. Bxf6 {[%clk 0:01:58]}  gxf6 {[%clk 0:02:14]} 22. f3 {[%clk 0:01:58]}  f5 {[%clk 0:02:12]} 23. g4 {[%clk 0:01:47]}  fxg4 {[%clk 0:02:04]} 24. fxg4 {[%clk 0:01:40]}  Kh8 {[%clk 0:02:02]} 25. g5 {[%clk 0:01:39]}  Bg4 {[%clk 0:01:57]} 26. h4 {[%clk 0:01:33]}  Bf3 {[%clk 0:01:55]} 27. Rh3 {[%clk 0:00:57]}  Rfc8 {[%clk 0:01:44]} 28. Kf2 {[%clk 0:00:45]}  f6 {[%clk 0:01:23]} 29. Qd2 {[%clk 0:00:18]}  Qe6 {[%clk 0:01:11]} 30. Rh2 {[%clk 0:00:14]}  Rf8 {[%clk 0:01:07]} 31. Rg1 {[%clk 0:00:09]}  Bh5 {[%clk 0:01:04]} 32. Ke1 {[%clk 0:00:08]}  fxg5 {[%clk 0:01:02]} 33. hxg5 {[%clk 0:00:08]}  Bf3 {[%clk 0:00:58]} 34. g6 {[%clk 0:00:07]}  Rb7 {[%clk 0:00:51]} 35. Qf2 {[%clk 0:00:06]}  h5 {[%clk 0:00:39]} 36. Rxh5+ {[%clk 0:00:06]}  Kg8 {[%clk 0:00:34]} 37. Rh2 {[%clk 0:00:02]}  Qf6 {[%clk 0:00:30]} 38. Qg3 {[%clk 0:00:02]}  Rd8 {[%clk 0:00:22]} 39. Rh7 {[%clk 0:00:01]}  Rg7 {[%clk 0:00:19]} 40. Rxg7+ {[%clk 0:00:02]}  Kxg7 {[%clk 0:00:17]} 41. Qh2 {[%clk 0:00:02]}  Rh8 {[%clk 0:00:17]} 42. Qc7+ {[%clk 0:00:02]}  Kg8 {[%clk 0:00:18]} 43. Nxd5 {[%clk 0:00:03]}  Qh4+ {[%clk 0:00:17]} 44. Kd2 {[%clk 0:00:02]}  Qh2+ {[%clk 0:00:17]} 45. Kc3 {[%clk 0:00:03]}  Qxc7+ {[%clk 0:00:17]} 46. Nxc7 {[%clk 0:00:04]}  Kg7 {[%clk 0:00:18]} 47. Nd5 {[%clk 0:00:05]}  Rc8+ {[%clk 0:00:17]} 48. Kd2 {[%clk 0:00:05]}  Rb8 {[%clk 0:00:17]} 49. b3 {[%clk 0:00:05]}  Rd8 {[%clk 0:00:17]} 50. Nf4 {[%clk 0:00:06]}  Re8 {[%clk 0:00:16]} 51. Rc1 {[%clk 0:00:06]}  Rh8 {[%clk 0:00:15]} 52. Rc7+ {[%clk 0:00:07]}  Kf6 {[%clk 0:00:15]} 53. g7 {[%clk 0:00:07]}  Rg8 {[%clk 0:00:16]} 54. Nd5+ {[%clk 0:00:07]}  Ke6 {[%clk 0:00:16]} 55. Nf4+ {[%clk 0:00:07]}  Kf6 {[%clk 0:00:16]} 56. Rxa7 {[%clk 0:00:08]}  Rc8 {[%clk 0:00:15]} 57. b4 {[%clk 0:00:05]}  Rb8 {[%clk 0:00:15]} 58. a3 {[%clk 0:00:06]}  Bg4 {[%clk 0:00:16]} 59. Nd5+ {[%clk 0:00:05]}  Ke6 {[%clk 0:00:15]} 60. Nc3 {[%clk 0:00:05]}  Bf5 {[%clk 0:00:15]} 61. d5+ {[%clk 0:00:06]}  Ke5 {[%clk 0:00:16]} 62. b5 {[%clk 0:00:06]}  Bh7 {[%clk 0:00:15]} 63. a4 {[%clk 0:00:06]}  Rg8 {[%clk 0:00:15]} 64. a5 {[%clk 0:00:07]}  Bg6 {[%clk 0:00:15]} 65. b6 {[%clk 0:00:07]}  Kf6 {[%clk 0:00:16]} 66. b7 {[%clk 0:00:08]}  Bf7 {[%clk 0:00:16]} 67. Ra8 {[%clk 0:00:08]}  Rxg7 {[%clk 0:00:17]} 68. b8=Q {[%clk 0:00:08]}  Rg2+ {[%clk 0:00:18]} 69. Ne2 {[%clk 0:00:08]}  Bg6 {[%clk 0:00:19]} 70. Qf4+ {[%clk 0:00:08]}  Bf5 {[%clk 0:00:18]} 71. Rf8+ {[%clk 0:00:08]} 1-0


[Site "https://www.chess.com"]